[Event "Titled Tuesday Blitz February 28 Late 2023"]
[White "Vlassov, Nikolai"]
[Black "Florescu, Codrut-Constantin"]
[WhiteFideId "4103360"]
[BlackFideId "1202200"]
[WhiteElo "2324"]
[BlackElo "2191"]
[Result "0-1"]
[Round "11"]
[TimeControl "180+2"]
[Date "2023.02.28"]
[WhiteClock "0:00:01"]
[BlackClock "0:00:33"]

1. e4 {[%clk 0:03:00]}  c5 {[%clk 0:02:59]} 2. c3 {[%clk 0:03:00]}  Nf6 {[%clk 0:02:58]} 3. e5 {[%clk 0:03:00]}  Nd5 {[%clk 0:02:58]} 4. d4 {[%clk 0:03:01]}  cxd4 {[%clk 0:02:58]} 5. cxd4 {[%clk 0:03:01]}  e6 {[%clk 0:02:59]} 6. Nc3 {[%clk 0:03:00]}  Nc6 {[%clk 0:02:59]} 7. f4 {[%clk 0:02:59]}  d6 {[%clk 0:02:54]} 8. Nf3 {[%clk 0:02:59]}  Be7 {[%clk 0:02:48]} 9. Bd3 {[%clk 0:02:58]}  Bd7 {[%clk 0:02:43]} 10. O-O {[%clk 0:02:49]}  Qb6 {[%clk 0:02:42]} 11. Nxd5 {[%clk 0:02:46]}  exd5 {[%clk 0:02:41]} 12. Be3 {[%clk 0:02:41]}  O-O {[%clk 0:02:34]} 13. Qe2 {[%clk 0:02:34]}  Rae8 {[%clk 0:02:23]} 14. a3 {[%clk 0:02:29]}  Bg4 {[%clk 0:02:14]} 15. Rad1 {[%clk 0:02:20]}  dxe5 {[%clk 0:02:04]} 16. fxe5 {[%clk 0:01:35]}  f5 {[%clk 0:01:59]} 17. b4 {[%clk 0:01:29]}  a6 {[%clk 0:01:58]} 18. Bb1 {[%clk 0:01:23]}  g6 {[%clk 0:01:55]} 19. Ba2 {[%clk 0:01:19]}  Rd8 {[%clk 0:01:50]} 20. h3 {[%clk 0:01:17]}  Bh5 {[%clk 0:01:43]} 21. Kh2 {[%clk 0:01:05]}  f4 {[%clk 0:01:40]} 22. Bg1 {[%clk 0:00:55]}  g5 {[%clk 0:01:40]} 23. Qb2 {[%clk 0:00:39]}  Bg6 {[%clk 0:01:38]} 24. Bb3 {[%clk 0:00:31]}  Be4 {[%clk 0:01:35]} 25. Nd2 {[%clk 0:00:31]}  Bg6 {[%clk 0:01:29]} 26. Qa2 {[%clk 0:00:27]}  Bf7 {[%clk 0:01:25]} 27. Rfe1 {[%clk 0:00:25]}  Be6 {[%clk 0:01:23]} 28. Nf3 {[%clk 0:00:24]}  h5 {[%clk 0:01:16]} 29. Qc2 {[%clk 0:00:18]}  Bf5 {[%clk 0:01:16]} 30. Qa2 {[%clk 0:00:17]}  g4 {[%clk 0:01:13]} 31. Bxd5+ {[%clk 0:00:16]}  Kg7 {[%clk 0:01:13]} 32. Nd2 {[%clk 0:00:13]}  Bh4 {[%clk 0:01:03]} 33. Re2 {[%clk 0:00:12]}  Bg3+ {[%clk 0:01:02]} 34. Kh1 {[%clk 0:00:12]}  f3 {[%clk 0:00:56]} 35. gxf3 {[%clk 0:00:12]}  gxh3 {[%clk 0:00:57]} 36. Be4 {[%clk 0:00:11]}  Ne7 {[%clk 0:00:55]} 37. d5 {[%clk 0:00:11]}  Qb5 {[%clk 0:00:54]} 38. Nb3 {[%clk 0:00:09]}  Qc4 {[%clk 0:00:53]} 39. Nd4 {[%clk 0:00:08]}  Qxa2 {[%clk 0:00:48]} 40. Nxf5+ {[%clk 0:00:07]}  Nxf5 {[%clk 0:00:48]} 41. Rxa2 {[%clk 0:00:08]}  Bxe5 {[%clk 0:00:44]} 42. Bh2 {[%clk 0:00:07]}  Ng3+ {[%clk 0:00:43]} 43. Bxg3 {[%clk 0:00:07]}  Bxg3 {[%clk 0:00:44]} 44. d6 {[%clk 0:00:07]}  Rxd6 {[%clk 0:00:42]} 45. Rxd6 {[%clk 0:00:06]}  Bxd6 {[%clk 0:00:43]} 46. Bxb7 {[%clk 0:00:06]}  h2 {[%clk 0:00:39]} 47. Bxa6 {[%clk 0:00:05]}  Re8 {[%clk 0:00:40]} 48. Re2 {[%clk 0:00:03]}  Rf8 {[%clk 0:00:37]} 49. Rf2 {[%clk 0:00:04]}  Rf4 {[%clk 0:00:36]} 50. Bd3 {[%clk 0:00:02]}  Rd4 {[%clk 0:00:36]} 51. Bf1 {[%clk 0:00:02]}  Rd1 {[%clk 0:00:35]} 52. Kg2 {[%clk 0:00:01]}  h4 {[%clk 0:00:33]} 0-1


[Site "https://www.chess.com"]

[Event "Titled Tuesday Blitz February 28 Late 2023"]
[White "reevecanada"]
[Black "Blomqvist, Erik"]
[BlackFideId "1709437"]
[WhiteElo "2489"]
[BlackElo "2436"]
[Result "1-0"]
[Round "11"]
[TimeControl "180+2"]
[Date "2023.02.28"]
[WhiteClock "0:00:02"]
[BlackClock "0:00:02"]

1. e4 {[%clk 0:02:56]}  c5 {[%clk 0:02:59]} 2. Nf3 {[%clk 0:02:55]}  d6 {[%clk 0:02:59]} 3. d4 {[%clk 0:02:52]}  cxd4 {[%clk 0:03:00]} 4. Qxd4 {[%clk 0:02:52]}  Nc6 {[%clk 0:03:00]} 5. Qe3 {[%clk 0:02:52]}  Nf6 {[%clk 0:02:59]} 6. c4 {[%clk 0:02:52]}  g6 {[%clk 0:02:53]} 7. h3 {[%clk 0:02:50]}  Bg7 {[%clk 0:02:52]} 8. Nc3 {[%clk 0:02:50]}  O-O {[%clk 0:02:48]} 9. Be2 {[%clk 0:02:51]}  Nd7 {[%clk 0:02:32]} 10. O-O {[%clk 0:02:50]}  Nc5 {[%clk 0:02:32]} 11. Rb1 {[%clk 0:02:49]}  a5 {[%clk 0:02:32]} 12. b3 {[%clk 0:02:47]}  Bxc3 {[%clk 0:02:30]} 13. Qxc3 {[%clk 0:02:45]}  Nxe4 {[%clk 0:02:30]} 14. Qa1 {[%clk 0:02:44]}  e5 {[%clk 0:02:30]} 15. Bd3 {[%clk 0:02:39]}  Nc5 {[%clk 0:02:28]} 16. Bc2 {[%clk 0:02:38]}  Nb4 {[%clk 0:02:27]} 17. Ne1 {[%clk 0:02:35]}  Nxc2 {[%clk 0:02:26]} 18. Nxc2 {[%clk 0:02:34]}  Bf5 {[%clk 0:02:26]} 19. Qc3 {[%clk 0:02:33]}  Qh4 {[%clk 0:02:19]} 20. Ra1 {[%clk 0:02:25]}  Rfc8 {[%clk 0:01:44]} 21. Ne3 {[%clk 0:02:20]}  Be6 {[%clk 0:01:44]} 22. f4 {[%clk 0:02:17]}  exf4 {[%clk 0:01:32]} 23. Bb2 {[%clk 0:02:12]}  f6 {[%clk 0:01:32]} 24. Ng4 {[%clk 0:02:11]}  Bxg4 {[%clk 0:01:26]} 25. Rxf4 {[%clk 0:02:06]}  Rf8 {[%clk 0:01:03]} 26. Rxg4 {[%clk 0:02:03]}  Qh5 {[%clk 0:01:03]} 27. Rf1 {[%clk 0:01:59]}  Qe5 {[%clk 0:00:42]} 28. Qd2 {[%clk 0:01:45]}  Ne4 {[%clk 0:00:35]} 29. Qe2 {[%clk 0:01:36]}  Qc5+ {[%clk 0:00:34]} 30. Kh2 {[%clk 0:01:25]}  f5 {[%clk 0:00:29]} 31. Rgf4 {[%clk 0:01:24]}  Rae8 {[%clk 0:00:27]} 32. Qd3 {[%clk 0:01:19]}  d5 {[%clk 0:00:16]} 33. cxd5 {[%clk 0:01:07]}  Rd8 {[%clk 0:00:17]} 34. Rd1 {[%clk 0:00:40]}  Rd7 {[%clk 0:00:14]} 35. Rxe4 {[%clk 0:00:16]}  fxe4 {[%clk 0:00:14]} 36. Qxe4 {[%clk 0:00:17]}  Qd6+ {[%clk 0:00:13]} 37. Kh1 {[%clk 0:00:15]}  Rdf7 {[%clk 0:00:10]} 38. Qe2 {[%clk 0:00:13]}  Rf2 {[%clk 0:00:09]} 39. Qe5 {[%clk 0:00:04]}  Qxe5 {[%clk 0:00:07]} 40. Bxe5 {[%clk 0:00:05]}  Rf1+ {[%clk 0:00:06]} 41. Rxf1 {[%clk 0:00:05]}  Rxf1+ {[%clk 0:00:07]} 42. Kh2 {[%clk 0:00:06]}  Rd1 {[%clk 0:00:08]} 43. d6 {[%clk 0:00:06]}  Kf7 {[%clk 0:00:08]} 44. Bc3 {[%clk 0:00:05]}  b6 {[%clk 0:00:07]} 45. Be5 {[%clk 0:00:05]}  Ke6 {[%clk 0:00:07]} 46. Bf4 {[%clk 0:00:06]}  g5 {[%clk 0:00:05]} 47. Bxg5 {[%clk 0:00:05]}  Kxd6 {[%clk 0:00:05]} 48. Kg3 {[%clk 0:00:05]}  Ra1 {[%clk 0:00:03]} 49. Bf4+ {[%clk 0:00:03]}  Ke6 {[%clk 0:00:03]} 50. Bc7 {[%clk 0:00:02]}  Rxa2 {[%clk 0:00:02]} 51. Bxb6 {[%clk 0:00:02]}  Ra3 {[%clk 0:00:02]} 52. Kh4 {[%clk 0:00:02]} 1-0


[Site "https://www.chess.com"]

[Event "Titled Tuesday Blitz February 28 Late 2023"]
[White "Rodrigues, Tiago Pereira"]
[Black "Mortazavi, Ali"]
[WhiteFideId "2101203"]
[BlackFideId "401323"]
[WhiteElo "2168"]
[BlackElo "2339"]
[Result "1-0"]
[Round "11"]
[TimeControl "180+2"]
[Date "2023.02.28"]
[WhiteClock "0:00:27"]
[BlackClock "0:00:11"]

1. d4 {[%clk 0:02:57]}  Nf6 {[%clk 0:02:59]} 2. Bf4 {[%clk 0:02:56]}  g6 {[%clk 0:02:59]} 3. e3 {[%clk 0:02:56]}  Bg7 {[%clk 0:03:00]} 4. Be2 {[%clk 0:02:56]}  O-O {[%clk 0:03:00]} 5. h4 {[%clk 0:02:56]}  h5 {[%clk 0:03:00]} 6. g4 {[%clk 0:02:56]}  hxg4 {[%clk 0:02:55]} 7. Bxg4 {[%clk 0:02:56]}  d6 {[%clk 0:02:36]} 8. Bf3 {[%clk 0:02:47]}  c5 {[%clk 0:02:34]} 9. Nc3 {[%clk 0:02:46]}  cxd4 {[%clk 0:02:34]} 10. exd4 {[%clk 0:02:43]}  Qa5 {[%clk 0:02:31]} 11. Ne2 {[%clk 0:02:35]}  Nc6 {[%clk 0:02:17]} 12. Bd2 {[%clk 0:02:17]}  Bg4 {[%clk 0:01:28]} 13. Nd5 {[%clk 0:01:49]}  Bxf3 {[%clk 0:01:26]} 14. Nxf6+ {[%clk 0:01:47]}  Bxf6 {[%clk 0:01:23]} 15. Bxa5 {[%clk 0:01:48]}  Bxh1 {[%clk 0:01:14]} 16. Bc3 {[%clk 0:01:48]}  Be4 {[%clk 0:00:51]} 17. Ng3 {[%clk 0:01:47]}  Bd5 {[%clk 0:00:51]} 18. Qg4 {[%clk 0:01:43]}  b5 {[%clk 0:00:45]} 19. h5 {[%clk 0:01:40]}  b4 {[%clk 0:00:32]} 20. hxg6 {[%clk 0:01:41]}  bxc3 {[%clk 0:00:30]} 21. gxf7+ {[%clk 0:01:41]}  Kxf7 {[%clk 0:00:30]} 22. Qh5+ {[%clk 0:01:41]}  Kg7 {[%clk 0:00:24]} 23. Nf5+ {[%clk 0:01:28]}  Kg8 {[%clk 0:00:19]} 24. Qg6+ {[%clk 0:01:20]}  Kh8 {[%clk 0:00:19]} 25. Qh5+ {[%clk 0:01:18]}  Kg8 {[%clk 0:00:19]} 26. Nh6+ {[%clk 0:01:17]}  Kg7 {[%clk 0:00:19]} 27. Qxd5 {[%clk 0:01:14]}  cxb2 {[%clk 0:00:19]} 28. Nf5+ {[%clk 0:01:13]}  Kg6 {[%clk 0:00:18]} 29. Rb1 {[%clk 0:01:04]}  Nb4 {[%clk 0:00:18]} 30. Qe4 {[%clk 0:00:51]}  d5 {[%clk 0:00:18]} 31. Qg4+ {[%clk 0:00:46]}  Kf7 {[%clk 0:00:16]} 32. Rxb2 {[%clk 0:00:36]}  a5 {[%clk 0:00:13]} 33. c3 {[%clk 0:00:34]}  Nd3+ {[%clk 0:00:13]} 34. Ke2 {[%clk 0:00:34]}  Nxb2 {[%clk 0:00:13]} 35. Qh5+ {[%clk 0:00:28]}  Ke6 {[%clk 0:00:14]} 36. Ne3 {[%clk 0:00:28]}  Rg8 {[%clk 0:00:11]} 37. Qxd5# {[%clk 0:00:27]} 1-0


[Site "https://www.chess.com"]

[Event "Titled Tuesday Blitz February 28 Late 2023"]
[White "Karttunen, Mika"]
[Black "Rottenwohrer Suarez, Juan"]
[WhiteFideId "502081"]
[BlackFideId "32068182"]
[WhiteElo "2396"]
[BlackElo "2174"]
[Result "0-1"]
[Round "11"]
[TimeControl "180+2"]
[Date "2023.02.28"]
[WhiteClock "0:00:14"]
[BlackClock "0:00:22"]

1. c4 {[%clk 0:03:00]}  Nf6 {[%clk 0:03:00]} 2. Nc3 {[%clk 0:03:00]}  g6 {[%clk 0:02:59]} 3. Nf3 {[%clk 0:02:59]}  Bg7 {[%clk 0:02:59]} 4. g3 {[%clk 0:02:50]}  O-O {[%clk 0:02:59]} 5. Bg2 {[%clk 0:02:50]}  b6 {[%clk 0:03:00]} 6. Ne5 {[%clk 0:02:44]}  c6 {[%clk 0:03:00]} 7. d4 {[%clk 0:02:43]}  Bb7 {[%clk 0:03:01]} 8. O-O {[%clk 0:02:42]}  d6 {[%clk 0:03:02]} 9. Nd3 {[%clk 0:02:40]}  d5 {[%clk 0:03:02]} 10. c5 {[%clk 0:02:32]}  Nbd7 {[%clk 0:02:57]} 11. Na4 {[%clk 0:01:44]}  Ne4 {[%clk 0:02:48]} 12. f3 {[%clk 0:01:31]}  Nef6 {[%clk 0:02:22]} 13. Bd2 {[%clk 0:01:13]}  Re8 {[%clk 0:02:21]} 14. f4 {[%clk 0:01:01]}  Ne4 {[%clk 0:02:19]} 15. e3 {[%clk 0:00:55]}  Ba6 {[%clk 0:02:10]} 16. Bb4 {[%clk 0:00:46]}  bxc5 {[%clk 0:02:02]} 17. dxc5 {[%clk 0:00:29]}  Rb8 {[%clk 0:01:53]} 18. a3 {[%clk 0:00:22]}  Bb5 {[%clk 0:01:49]} 19. Re1 {[%clk 0:00:16]}  a5 {[%clk 0:01:42]} 20. Bc3 {[%clk 0:00:11]}  Bxa4 {[%clk 0:01:26]} 21. Qxa4 {[%clk 0:00:10]}  Ndxc5 {[%clk 0:01:27]} 22. Nxc5 {[%clk 0:00:10]}  Nxc5 {[%clk 0:01:28]} 23. Qxa5 {[%clk 0:00:10]}  Qxa5 {[%clk 0:01:26]} 24. Bxa5 {[%clk 0:00:11]}  Nb3 {[%clk 0:01:27]} 25. Bc3 {[%clk 0:00:11]}  Bxc3 {[%clk 0:01:23]} 26. bxc3 {[%clk 0:00:11]}  Nxa1 {[%clk 0:01:23]} 27. Rxa1 {[%clk 0:00:12]}  Ra8 {[%clk 0:01:09]} 28. c4 {[%clk 0:00:12]}  e6 {[%clk 0:01:09]} 29. e4 {[%clk 0:00:12]}  dxc4 {[%clk 0:01:05]} 30. e5 {[%clk 0:00:12]}  Ra6 {[%clk 0:01:06]} 31. Bf1 {[%clk 0:00:12]}  Rea8 {[%clk 0:01:05]} 32. Rc1 {[%clk 0:00:12]}  Rxa3 {[%clk 0:01:01]} 33. Rxc4 {[%clk 0:00:12]}  Rc8 {[%clk 0:00:56]} 34. Kf2 {[%clk 0:00:10]}  Ra2+ {[%clk 0:00:54]} 35. Be2 {[%clk 0:00:11]}  c5 {[%clk 0:00:55]} 36. g4 {[%clk 0:00:10]}  h6 {[%clk 0:00:54]} 37. h4 {[%clk 0:00:11]}  Kf8 {[%clk 0:00:53]} 38. h5 {[%clk 0:00:11]}  gxh5 {[%clk 0:00:52]} 39. gxh5 {[%clk 0:00:12]}  Ke7 {[%clk 0:00:52]} 40. Ke3 {[%clk 0:00:12]}  Ra5 {[%clk 0:00:48]} 41. Bf3 {[%clk 0:00:12]}  Rb8 {[%clk 0:00:48]} 42. Kf2 {[%clk 0:00:12]}  Rb4 {[%clk 0:00:46]} 43. Rc3 {[%clk 0:00:11]}  Rxf4 {[%clk 0:00:46]} 44. Kg3 {[%clk 0:00:12]}  Rb4 {[%clk 0:00:42]} 45. Bc6 {[%clk 0:00:10]}  c4 {[%clk 0:00:39]} 46. Kf4 {[%clk 0:00:10]}  Rc5 {[%clk 0:00:37]} 47. Be4 {[%clk 0:00:10]}  Rb3 {[%clk 0:00:36]} 48. Rc2 {[%clk 0:00:10]}  c3 {[%clk 0:00:36]} 49. Ra2 {[%clk 0:00:10]}  Rc7 {[%clk 0:00:33]} 50. Rg2 {[%clk 0:00:09]}  Rb2 {[%clk 0:00:32]} 51. Bc2 {[%clk 0:00:10]}  Rd7 {[%clk 0:00:30]} 52. Ke3 {[%clk 0:00:10]}  Rd2 {[%clk 0:00:28]} 53. Rxd2 {[%clk 0:00:10]}  cxd2 {[%clk 0:00:29]} 54. Kxd2 {[%clk 0:00:10]}  Rb5 {[%clk 0:00:29]} 55. Ke3 {[%clk 0:00:11]}  Rxe5+ {[%clk 0:00:30]} 56. Kf4 {[%clk 0:00:12]}  Rxh5 {[%clk 0:00:29]} 57. Be4 {[%clk 0:00:13]}  Ra5 {[%clk 0:00:23]} 58. Bf3 {[%clk 0:00:14]}  Kf6 {[%clk 0:00:22]} 0-1


[Site "https://www.chess.com"]

[Event "Titled Tuesday Blitz February 28 Late 2023"]
[White "Rego, Pedro Filipe"]
[Black "Paszewski, Mateusz"]
[WhiteFideId "1904310"]
[BlackFideId "1141058"]
[WhiteElo "2193"]
[BlackElo "2223"]
[Result "0-1"]
[Round "11"]
[TimeControl "180+2"]
[Date "2023.02.28"]
[WhiteClock "0:00:06"]
[BlackClock "0:00:07"]

1. c4 {[%clk 0:03:00]}  e6 {[%clk 0:02:58]} 2. Nf3 {[%clk 0:02:56]}  d5 {[%clk 0:02:58]} 3. b3 {[%clk 0:02:57]}  Nf6 {[%clk 0:02:57]} 4. Bb2 {[%clk 0:02:58]}  c5 {[%clk 0:02:55]} 5. e3 {[%clk 0:02:56]}  Nc6 {[%clk 0:02:55]} 6. cxd5 {[%clk 0:02:53]}  exd5 {[%clk 0:02:54]} 7. d4 {[%clk 0:02:54]}  cxd4 {[%clk 0:02:47]} 8. Nxd4 {[%clk 0:02:55]}  Bb4+ {[%clk 0:02:47]} 9. Bc3 {[%clk 0:02:40]}  Bd6 {[%clk 0:02:45]} 10. Bb5 {[%clk 0:02:37]}  Bd7 {[%clk 0:02:42]} 11. Nd2 {[%clk 0:02:34]}  O-O {[%clk 0:02:40]} 12. Bb2 {[%clk 0:02:33]}  Rc8 {[%clk 0:02:24]} 13. Be2 {[%clk 0:02:29]}  Bb8 {[%clk 0:01:45]} 14. Rc1 {[%clk 0:02:20]}  Re8 {[%clk 0:01:42]} 15. a3 {[%clk 0:02:13]}  Qe7 {[%clk 0:01:42]} 16. b4 {[%clk 0:02:12]}  Ne4 {[%clk 0:01:23]} 17. Nxe4 {[%clk 0:02:06]}  dxe4 {[%clk 0:01:22]} 18. b5 {[%clk 0:01:59]}  Ne5 {[%clk 0:01:22]} 19. Rxc8 {[%clk 0:01:53]}  Rxc8 {[%clk 0:01:22]} 20. O-O {[%clk 0:01:52]}  Qg5 {[%clk 0:01:21]} 21. Kh1 {[%clk 0:01:18]}  Bg4 {[%clk 0:01:10]} 22. h3 {[%clk 0:01:05]}  Bxe2 {[%clk 0:01:05]} 23. Qxe2 {[%clk 0:01:05]}  Nd3 {[%clk 0:01:05]} 24. f4 {[%clk 0:00:53]}  Qd5 {[%clk 0:00:37]} 25. Ba1 {[%clk 0:00:42]}  Qd7 {[%clk 0:00:34]} 26. Rd1 {[%clk 0:00:36]}  Bd6 {[%clk 0:00:34]} 27. a4 {[%clk 0:00:35]}  Bc5 {[%clk 0:00:31]} 28. Nb3 {[%clk 0:00:32]}  Bb6 {[%clk 0:00:28]} 29. Kh2 {[%clk 0:00:30]}  Qe6 {[%clk 0:00:23]} 30. Nd4 {[%clk 0:00:30]}  Qd7 {[%clk 0:00:18]} 31. Rd2 {[%clk 0:00:22]}  Bd8 {[%clk 0:00:16]} 32. Rc2 {[%clk 0:00:22]}  Bf6 {[%clk 0:00:16]} 33. Qd2 {[%clk 0:00:15]}  h5 {[%clk 0:00:13]} 34. Rc3 {[%clk 0:00:14]}  Rxc3 {[%clk 0:00:10]} 35. Bxc3 {[%clk 0:00:12]}  Kh7 {[%clk 0:00:07]} 36. Qe2 {[%clk 0:00:11]}  h4 {[%clk 0:00:06]} 37. Qh5+ {[%clk 0:00:11]}  Kg8 {[%clk 0:00:06]} 38. Qc5 {[%clk 0:00:09]}  b6 {[%clk 0:00:06]} 39. Qc4 {[%clk 0:00:08]}  Qd6 {[%clk 0:00:04]} 40. Nc6 {[%clk 0:00:07]}  Bxc3 {[%clk 0:00:03]} 41. Qxc3 {[%clk 0:00:08]}  Nxf4 {[%clk 0:00:03]} 42. exf4 {[%clk 0:00:08]}  Qxf4+ {[%clk 0:00:04]} 43. Kh1 {[%clk 0:00:08]}  e3 {[%clk 0:00:04]} 44. Qd3 {[%clk 0:00:07]}  Qf2 {[%clk 0:00:03]} 45. Nd4 {[%clk 0:00:07]}  Qe1+ {[%clk 0:00:03]} 46. Kh2 {[%clk 0:00:08]}  Qg3+ {[%clk 0:00:04]} 47. Kg1 {[%clk 0:00:08]}  Qe1+ {[%clk 0:00:05]} 48. Qf1 {[%clk 0:00:08]}  Qg3 {[%clk 0:00:05]} 49. Ne2 {[%clk 0:00:08]}  Qe5 {[%clk 0:00:05]} 50. Qf3 {[%clk 0:00:08]}  Qa1+ {[%clk 0:00:05]} 51. Kh2 {[%clk 0:00:08]}  Qxa4 {[%clk 0:00:05]} 52. Qxe3 {[%clk 0:00:08]}  Qxb5 {[%clk 0:00:06]} 53. Qf4 {[%clk 0:00:08]}  g5 {[%clk 0:00:04]} 54. Qf3 {[%clk 0:00:08]}  Kg7 {[%clk 0:00:05]} 55. Kg1 {[%clk 0:00:08]}  Qe5 {[%clk 0:00:05]} 56. Qf2 {[%clk 0:00:08]}  b5 {[%clk 0:00:05]} 57. Qf3 {[%clk 0:00:08]}  b4 {[%clk 0:00:05]} 58. Qd3 {[%clk 0:00:09]}  a5 {[%clk 0:00:06]} 59. Kh1 {[%clk 0:00:08]}  a4 {[%clk 0:00:06]} 60. Nd4 {[%clk 0:00:08]}  a3 {[%clk 0:00:06]} 61. Nf5+ {[%clk 0:00:09]}  Kf6 {[%clk 0:00:06]} 62. Ne3 {[%clk 0:00:08]}  a2 {[%clk 0:00:06]} 63. Nd5+ {[%clk 0:00:07]}  Kg7 {[%clk 0:00:06]} 64. Nxb4 {[%clk 0:00:06]}  a1=Q+ {[%clk 0:00:07]} 0-1


[Site "https://www.chess.com"]

[Event "Titled Tuesday Blitz February 28 Late 2023"]
[White "Haszon, David"]
[Black "Yurovskykh, Oleksandr"]
[WhiteFideId "733610"]
[BlackFideId "14134020"]
[WhiteElo "2210"]
[BlackElo "2268"]
[Result "1-0"]
[Round "11"]
[TimeControl "180+2"]
[Date "2023.02.28"]
[WhiteClock "0:00:07"]
[BlackClock "0:00:01"]

1. d4 {[%clk 0:03:00]}  d5 {[%clk 0:02:59]} 2. Bf4 {[%clk 0:03:01]}  c5 {[%clk 0:02:59]} 3. e3 {[%clk 0:03:00]}  Nc6 {[%clk 0:02:59]} 4. Nf3 {[%clk 0:02:58]}  Bg4 {[%clk 0:02:57]} 5. c3 {[%clk 0:02:56]}  e6 {[%clk 0:02:58]} 6. Nbd2 {[%clk 0:02:56]}  Qb6 {[%clk 0:02:50]} 7. Qb3 {[%clk 0:02:37]}  c4 {[%clk 0:02:50]} 8. Qxb6 {[%clk 0:02:34]}  axb6 {[%clk 0:02:51]} 9. a3 {[%clk 0:02:34]}  b5 {[%clk 0:02:50]} 10. Rc1 {[%clk 0:02:33]}  Nf6 {[%clk 0:02:49]} 11. h3 {[%clk 0:02:31]}  Bf5 {[%clk 0:02:38]} 12. g4 {[%clk 0:02:30]}  Bg6 {[%clk 0:02:32]} 13. Bg2 {[%clk 0:02:30]}  h6 {[%clk 0:02:32]} 14. O-O {[%clk 0:02:28]}  Bd3 {[%clk 0:02:00]} 15. Rfe1 {[%clk 0:02:12]}  g5 {[%clk 0:00:55]} 16. Bg3 {[%clk 0:02:08]}  Bg7 {[%clk 0:00:55]} 17. Ne5 {[%clk 0:02:05]}  Ne4 {[%clk 0:00:55]} 18. Nxe4 {[%clk 0:02:02]}  Bxe4 {[%clk 0:00:40]} 19. f4 {[%clk 0:01:47]}  Bxg2 {[%clk 0:00:39]} 20. Kxg2 {[%clk 0:01:46]}  Bxe5 {[%clk 0:00:38]} 21. fxe5 {[%clk 0:01:45]}  Ke7 {[%clk 0:00:36]} 22. e4 {[%clk 0:01:45]}  dxe4 {[%clk 0:00:33]} 23. Rxe4 {[%clk 0:01:46]}  Na5 {[%clk 0:00:33]} 24. Rf1 {[%clk 0:01:46]}  Nb3 {[%clk 0:00:32]} 25. Re2 {[%clk 0:01:45]}  h5 {[%clk 0:00:30]} 26. Ref2 {[%clk 0:01:45]}  Raf8 {[%clk 0:00:27]} 27. h4 {[%clk 0:01:39]}  hxg4 {[%clk 0:00:23]} 28. hxg5 {[%clk 0:01:38]}  Rhg8 {[%clk 0:00:24]} 29. Bh4 {[%clk 0:01:36]}  Rg6 {[%clk 0:00:23]} 30. Kg3 {[%clk 0:01:34]}  Ke8 {[%clk 0:00:21]} 31. Kxg4 {[%clk 0:01:34]}  Na5 {[%clk 0:00:21]} 32. d5 {[%clk 0:01:26]}  exd5 {[%clk 0:00:20]} 33. Rd1 {[%clk 0:01:27]}  Nc6 {[%clk 0:00:19]} 34. Rxd5 {[%clk 0:01:26]}  Re6 {[%clk 0:00:19]} 35. Rf5 {[%clk 0:01:22]}  Ne7 {[%clk 0:00:19]} 36. Rxb5 {[%clk 0:01:20]}  Nxf5 {[%clk 0:00:19]} 37. Kxf5 {[%clk 0:01:21]}  b6 {[%clk 0:00:18]} 38. Rd5 {[%clk 0:01:18]}  Rh8 {[%clk 0:00:18]} 39. Kg4 {[%clk 0:01:05]}  Rg6 {[%clk 0:00:18]} 40. Rd4 {[%clk 0:01:01]}  Rc6 {[%clk 0:00:17]} 41. Kf5 {[%clk 0:00:48]}  Rg8 {[%clk 0:00:13]} 42. Ke4 {[%clk 0:00:39]}  Rgg6 {[%clk 0:00:12]} 43. Kd5 {[%clk 0:00:34]}  Rc5+ {[%clk 0:00:13]} 44. Ke4 {[%clk 0:00:35]}  Re6 {[%clk 0:00:13]} 45. Bg3 {[%clk 0:00:35]}  Re7 {[%clk 0:00:10]} 46. Bf4 {[%clk 0:00:30]}  Rd7 {[%clk 0:00:11]} 47. Be3 {[%clk 0:00:19]}  Rxd4+ {[%clk 0:00:10]} 48. Kxd4 {[%clk 0:00:16]}  Rc6 {[%clk 0:00:07]} 49. Kd5 {[%clk 0:00:15]}  Kd7 {[%clk 0:00:07]} 50. Bd4 {[%clk 0:00:15]}  Kc7 {[%clk 0:00:04]} 51. a4 {[%clk 0:00:15]}  Rg6 {[%clk 0:00:04]} 52. Be3 {[%clk 0:00:15]}  Rc6 {[%clk 0:00:03]} 53. Bd4 {[%clk 0:00:15]}  Kb7 {[%clk 0:00:03]} 54. Be3 {[%clk 0:00:10]}  Rc8 {[%clk 0:00:02]} 55. Ke4 {[%clk 0:00:07]}  Kc6 {[%clk 0:00:01]} 56. Kf5 {[%clk 0:00:07]} 1-0


[Site "https://www.chess.com"]

[Event "Titled Tuesday Blitz February 28 Late 2023"]
[White "Maximov, Dmitry"]
[Black "Bouget, Alexandre"]
[WhiteFideId "14105659"]
[BlackFideId "681318"]
[WhiteElo "2494"]
[BlackElo "2177"]
[Result "1-0"]
[Round "11"]
[TimeControl "180+2"]
[Date "2023.02.28"]
[WhiteClock "0:02:26"]
[BlackClock "0:00:51"]

1. e4 {[%clk 0:03:00]}  d5 {[%clk 0:02:56]} 2. exd5 {[%clk 0:03:01]}  Qxd5 {[%clk 0:02:56]} 3. Nc3 {[%clk 0:03:01]}  Qe6+ {[%clk 0:02:56]} 4. Nge2 {[%clk 0:02:58]}  Nc6 {[%clk 0:02:52]} 5. d4 {[%clk 0:02:58]}  Qg4 {[%clk 0:02:05]} 6. h3 {[%clk 0:02:56]}  Qh5 {[%clk 0:02:04]} 7. d5 {[%clk 0:02:45]}  Ne5 {[%clk 0:02:00]} 8. Bf4 {[%clk 0:02:45]}  e6 {[%clk 0:01:41]} 9. Qd4 {[%clk 0:02:40]}  Ng6 {[%clk 0:01:35]} 10. Ng3 {[%clk 0:02:36]}  Qh4 {[%clk 0:01:31]} 11. Bb5+ {[%clk 0:02:34]}  Bd7 {[%clk 0:01:09]} 12. Bxd7+ {[%clk 0:02:33]}  Kxd7 {[%clk 0:01:09]} 13. dxe6+ {[%clk 0:02:33]}  Kxe6 {[%clk 0:01:09]} 14. Qd5+ {[%clk 0:02:30]}  Kf6 {[%clk 0:00:52]} 15. Nce4+ {[%clk 0:02:26]}  Ke7 {[%clk 0:00:51]} 16. Nf5+ {[%clk 0:02:26]} 1-0


[Site "https://www.chess.com"]

[Event "Titled Tuesday Blitz February 28 Late 2023"]
[White "Vovk, Orest"]
[Black "Gerzhoy, Leonid"]
[WhiteFideId "14113490"]
[BlackFideId "2806126"]
[WhiteElo "2215"]
[BlackElo "2604"]
[Result "0-1"]
[Round "11"]
[TimeControl "180+2"]
[Date "2023.02.28"]
[WhiteClock "0:01:23"]
[BlackClock "0:00:56"]

1. h4 {[%clk 0:02:48]}  h5 {[%clk 0:02:58]} 2. Nf3 {[%clk 0:02:46]}  Nf6 {[%clk 0:02:58]} 3. Ng5 {[%clk 0:02:46]}  Ng4 {[%clk 0:02:58]} 4. e4 {[%clk 0:02:46]}  f6 {[%clk 0:02:52]} 5. Nh3 {[%clk 0:02:45]}  e5 {[%clk 0:02:47]} 6. d4 {[%clk 0:02:43]}  exd4 {[%clk 0:02:43]} 7. Qxd4 {[%clk 0:02:42]}  Nc6 {[%clk 0:02:42]} 8. Qa4 {[%clk 0:02:42]}  d5 {[%clk 0:02:39]} 9. Nc3 {[%clk 0:02:40]}  Bb4 {[%clk 0:02:30]} 10. Bb5 {[%clk 0:02:29]}  Bd7 {[%clk 0:02:04]} 11. exd5 {[%clk 0:02:23]}  Bxc3+ {[%clk 0:02:02]} 12. bxc3 {[%clk 0:02:21]}  Nce5 {[%clk 0:02:01]} 13. Bxd7+ {[%clk 0:02:18]}  Qxd7 {[%clk 0:02:01]} 14. Qxd7+ {[%clk 0:02:17]}  Kxd7 {[%clk 0:02:00]} 15. O-O {[%clk 0:02:07]}  Ng6 {[%clk 0:01:45]} 16. g3 {[%clk 0:02:03]}  Rhe8 {[%clk 0:01:44]} 17. c4 {[%clk 0:01:50]}  Re2 {[%clk 0:01:24]} 18. c5 {[%clk 0:01:42]}  Rxc2 {[%clk 0:01:23]} 19. c6+ {[%clk 0:01:41]}  bxc6 {[%clk 0:01:22]} 20. dxc6+ {[%clk 0:01:42]}  Kxc6 {[%clk 0:01:21]} 21. Nf4 {[%clk 0:01:38]}  Nxf4 {[%clk 0:01:20]} 22. Bxf4 {[%clk 0:01:39]}  Re8 {[%clk 0:01:18]} 23. f3 {[%clk 0:01:28]}  Ree2 {[%clk 0:01:14]} 24. Rfc1 {[%clk 0:01:23]}  Nh2 {[%clk 0:00:58]} 25. Rxc2+ {[%clk 0:01:22]}  Rxc2 {[%clk 0:00:57]} 26. Rf1 {[%clk 0:01:23]}  Nxf1 {[%clk 0:00:56]} 0-1


[Site "https://www.chess.com"]